{"text_format":"1","workbook":"xlsx","n_sheets":3,"sheets":["Исходные данные","Расчет уставок","Результаты расчета"],"not_rendered":{"charts":1,"images":164,"macros":1,"external_links":0,"defined_names":14,"comments":0,"pivot_tables":0},"unopened":[],"bounds":{"document_bytes":16777216,"sheet_cells":100000,"rows_first":2000,"rows_last":500,"rows_between":2000,"halvings":0,"cell_chars":16384,"cell_head_chars":4096},"cells_cut":0,"cells_raw":0,"read":"whole","date_system":"1900"}

{"sheet":"Исходные данные","index":0,"n_rows":68,"n_cols":16,"rows_kept":68,"cut":false,"hidden":false,"merged":[[2,0,2,13],[1,0,1,13],[0,0,0,13],[9,8,9,9],[11,8,11,10],[56,0,56,4],[46,0,46,4],[50,0,50,4],[9,11,9,13],[53,0,53,4],[11,11,11,13]]}
["НПП \"Микропроцессорные технологии\""]
["Пирогов М.Г, Илюхин Е.В."]
["2017 год"]
[]
["Исходные данные для расчета уставок защит двухобмоточного трансформатора Алтей-УЗТ"]
["Заполнить белые ячейки, выделенные зеленой рамкой -"]
[]
[null,null,null,null,null,null,null,null,"Параметры трансформатора",null,null,null,null,null,"Y/∆"]
[null,null,null,null,null,null,null,null,null,null,null,null,null,{"$f":"IF(OR(L10=\"∆/Y\",L10=\"Y/Y\"),SQRT(3)/2,1)","v":1},"∆/∆"]
[null,null,null,null,null,null,null,null,"Схема соединения",null,null,"Y/∆",null,null,"∆/Y","Маслонаполненный"]
[null,null,null,null,null,null,null,null,null,null,null,null,null,null,"Y/Y","Сухой"]
[null,null,null,null,null,null,null,null,"Тип трансформатора",null,null,"Маслонаполненный"]
[null,null,null,null,null,null,null,null,"Номинальная мощность трансформатора, кВА"]
[null,null,null,null,null,null,null,null,null,6300]
[null,null,null,null,null,null,null,null,"Номинальные напряжения сторон, кВ"]
[null,null,null,null,null,null,null,null,null,115]
[null,null,null,null,null,null,null,null,null,11]
[null,null,null,null,null,null,null,null,"Номинальный коэфициент трансформации трансформатора"]
[null,null,null,null,null,null,null,null,null,{"$f":"J16/J17","v":10.454545454545455}]
[null,null,null,null,null,null,null,null,"Параметры регулирования напряжения"]
[null,null,null,null,null,null,null,null,null,1.78,"- шаг регулирования напряжения устройством РПН, %"]
[null,null,null,null,null,null,null,null,null,5,"- количество ступеней, используемых для регулирования напряжения в большую сторону"]
[null,null,null,null,null,null,null,null,null,9,"- количество ступеней, используемых для регулирования напряжения в меньшую сторону"]
[]
[]
[null,null,null,null,null,null,null,null,"Параметры ТТ и ТН"]
[]
[null,null,null,null,null,null,null,null,"Коэффициент трансформации ТТ стороны ВН"]
[null,null,null,null,null,null,null,null,null,"=",100,"/",5,"=",{"$f":"K29/M29","v":20}]
[null,null,null,null,null,null,null,null,"Коэффициент трансформации ТТ стороны НН"]
[null,null,null,null,null,null,null,null,null,"=",600,"/",5,"=",{"$f":"K31/M31","v":120}]
[null,null,null,null,null,null,null,null,"Коэффициент трансформации ТН стороны НН"]
[null,null,null,null,null,null,null,null,null,"=",10000,"/",100,"=",{"$f":"K33/M33","v":100}]
[]
[]
[null,null,null,null,null,null,null,null,"Режимы работы"]
[]
[null,null,null,null,null,null,null,null,"Максимальная кратность реальной длительно возможной перегрузки трансформатора (относительно номинального тока трансформатора)"]
[null,null,null,null,null,null,null,null,null,1.4]
[null,null,null,null,null,null,null,null,"Максимальная кратность тока нагрузки своей секции шин стороны НН (относительно номинального тока трансформатора)"]
[null,null,null,null,null,null,null,null,null,0.7]
[null,null,null,null,null,null,null,null,"Первичное среднее номинальное напряжение сети на стороне НН, В"]
[null,null,null,null,null,null,null,null,null,10500]
[]
[]
["Тип нагрузки на стороне НН",null,null,null,null,null,null,null,"Токи короткого замыкания, приведенные к стороне ВН"]
["Промышленная (Uдвиг<=1000 В)",null,null,null,null,"Промышленная (Uдвиг<=1000 В)"]
[null,null,null,null,null,"Сельская общего назначения",null,null,"В точке К1 - на шинах ВН"]
[null,null,null,null,null,"Городская общего назначения",null,null,null,2457,"- максимальный ток трехфазного КЗ, А"]
["Роль МТЗ",null,null,null,null,null,null,null,null,2125,"- минимальный ток трехфазного КЗ, А"]
["Резервная",null,null,null,null,"Резервная",{"$f":"IF(A51=\"Резервная\",1.2,1.5)","v":1.2}]
[null,null,null,null,null,"Основная",null,null,"В точке К2 - на шинах НН"]
["Нагрузка",null,null,null,null,null,"Введите кнб",null,null,346,"- максимальный ток трехфазного КЗ, А"]
["Симметричная",null,null,null,null,null,0.4,"Симметричная",null,234,"- минимальный ток трехфазного КЗ, А"]
[null,null,null,null,null,null,null,"Несимметричная"]
["Роль  ТЗОП",null,null,null,null,null,null,null,"В точке К3 - в конце зоны резервирования (минимальный ток КЗ)"]
["Резервная",null,null,null,null,"Резервная",{"$f":"IF(A57=F57,1.2,1.5)","v":1.2},null,null,129,"- минимальный ток трехфазного КЗ, А"]
[null,null,null,null,null,"Основная",null,null,null,5070,"- максимальное линейное напряжение на шинах НН при трехфазном КЗ в точке К3, В"]
[null,null,null,null,null,null,null,null,null,1710,"- минимальное напряжение обратной последовательности на шинах НН при двухфазном КЗ в точке К3, В"]
[]
[]
[null,null,null,null,null,null,null,null,"Уставки защит с которыми производится согласование"]
[]
[null,null,null,null,null,null,null,null,null,28,"- значение уставки срабатывания МТЗ на присоединении СВ НН, приведенное к стороне ВН, А"]
[null,null,null,null,null,null,null,null,null,1.1000000000000001,"- значение уставки задержки срабатывания МТЗ на присоединении СВ НН, с"]
[]
[null,null,null,null,null,null,null,null,null,2.63,"- значение максимальной уставки срабатывания МТЗ присоединений собственной секции шин, приведенное к стороне ВН, А"]
[null,null,null,null,null,null,null,null,null,0.8,"- значение максимальной задержки срабатывания МТЗ присоединений собственной секции шин, с"]

{"sheet":"Расчет уставок","index":1,"n_rows":128,"n_cols":10,"rows_kept":128,"cut":false,"hidden":false,"merged":[[8,0,8,7],[125,5,127,5],[125,6,127,6],[125,7,127,7],[125,0,127,0],[125,1,127,1],[125,2,127,2],[125,3,127,3],[125,4,127,4],[113,0,113,7],[95,0,95,7],[97,0,97,7],[117,0,117,7],[123,0,123,7],[103,0,103,7],[104,0,106,0],[104,1,106,1],[104,2,106,2],[104,3,106,3],[104,4,106,4],[104,5,106,5],[104,6,106,6],[104,7,106,7],[99,0,99,7],[100,0,102,0],[100,1,102,1],[100,2,102,2],[100,3,102,3],[100,5,102,5],[100,6,102,6],[100,7,102,7],[91,0,91,7],[92,0,93,0],[92,1,93,1],[92,2,93,2],[92,3,93,3],[92,5,93,5],[92,6,93,6],[92,7,93,7],[22,5,24,5],[22,6,24,6],[22,7,24,7],[74,5,77,5],[74,6,77,6],[74,7,77,7],[84,0,86,0],[84,1,86,1],[84,2,86,2],[84,3,86,3],[84,4,86,4],[84,5,86,5],[84,6,86,6],[84,7,86,7],[74,0,77,0],[74,1,77,1],[74,2,77,2],[74,3,77,3],[74,4,77,4],[45,0,45,7],[46,1,49,1],[46,2,49,2],[46,3,49,3],[46,4,49,4],[0,3,0,4],[39,0,39,7],[10,5,12,5],[10,6,12,6],[10,7,12,7],[1,0,1,7],[18,0,20,0],[18,1,20,1],[18,2,20,2],[18,3,20,3],[18,4,20,4],[18,5,20,5],[10,0,12,0],[10,1,12,1],[10,2,12,2],[10,3,12,3],[10,4,12,4],[18,6,20,6],[18,7,20,7],[22,0,24,0],[22,1,24,1],[22,2,24,2],[22,3,24,3],[22,4,24,4],[46,5,49,5],[46,6,49,6],[46,7,49,7],[46,0,49,0],[73,0,73,7],[65,5,67,5],[65,6,67,6],[65,7,67,7],[57,0,58,0],[57,1,58,1],[57,2,58,2],[57,3,58,3],[57,4,58,4],[57,5,58,5],[57,6,58,6],[57,7,58,7],[65,0,67,0],[65,1,67,1],[65,2,67,2],[65,3,67,3],[65,4,67,4]]}
["№ п.п.","Величина","Обозначение","Формула",null,"Расчет","Примечание","Значение для ввода в устройство"]
["1. Выбор диапазона измерений токов"]
["1.1           ","Номинальный вторичный ток стороны ВН трансформатора, А",null,"9.1",null,{"$f":"'Исходные данные'!J14/(3^0.5*'Исходные данные'!J16*'Исходные данные'!O29)","v":1.5814376938672359},"-","-"]
["1.2           ","Номинальный ток диапазона измерений токов стороны ВН, А",null,"-","-",{"$f":"IF(F3>1,5,1)","v":5},"В соответствии с п. 9.2.3",{"$f":"F4","v":5}]
["1.3           ","Номинальный вторичный ток стороны НН трансформатора, А",null,"9.2",null,{"$f":"'Исходные данные'!J14/(3^0.5*'Исходные данные'!J17*'Исходные данные'!O31)","v":2.7555353756777592},"-","-"]
["1.4           ","Номинальный ток диапазона измерений токов стороны НН, А",null,"-","-",{"$f":"IF(F5>1,5,1)","v":5},"В соответствии с п. 9.2.3",{"$f":"F6","v":5}]
["1.5           ","Проверка входов измерения токов ВН","-","9.3",null,{"$f":"2*'Исходные данные'!J49/'Исходные данные'!O29","v":245.7},{"$f":"IF(F4*100>=F7,\"Условие выполняется\",\"Условие НЕ выполняется\")","v":"Условие выполняется"},"-"]
["1.6           ","Проверка входов измерения токов ВН","-","9.4",null,{"$f":"2*'Исходные данные'!J53/'Исходные данные'!O31*'Исходные данные'!J16/'Исходные данные'!J17","v":60.287878787878782},{"$f":"IF(F6*100>=F8,\"Условие выполняется\",\"Условие НЕ выполняется\")","v":"Условие выполняется"},"-"]
["2.     Дифференциальная токовая защита (ДТО и ДЗТ)"]
["2.1           ","Номинальный ток обмотки ВН трансформатора, А",null,"10.3",null,{"$f":"'Исходные данные'!J14/3^0.5/'Исходные данные'!J16","v":31.628753877344717},"-","-"]
["2.2           ","Максимальный ток небаланса в режиме внешнего КЗ, о.е.",null,"10.2",null,{"$f":"(J11*J12+'Исходные данные'!J21*MAX('Исходные данные'!J22:J23)+J13)/100*'Исходные данные'!J53/F10","v":5.0343178431083837},"-","-",null,2.5]
[null,null,null,null,null,null,null,null,null,10]
[null,null,null,null,null,null,null,null,null,5]
["2.3           ","Уставка срабатывания ДТО по условию отстройки от тока небаланса, о.е.",null,"10.1",null,{"$f":"ROUNDUP(J14*F11,2)","v":6.55},"-","-",null,1.3]
["2.4           ","Уставка срабатывания ДТО по условию отстройки от БТН, о.е.",null,"-","-",6,"В соответствии с п. 10.2.4","-"]
["2.5           ","Выбранное значение уставки срабатывания ДТО, о.е.",null,"-","-",{"$f":"MAX(F14:F15)","v":6.55},"максимальное значение из п.п. 2.3 и 2.4",{"$f":"F16","v":6.55}]
["2.6           ","Уставка ток начала торможения первого участка ДЗТ, о.е.",null,"-","-","-","В соответствии с п. 10.3.2",1]
["2.7           ","Уставка ток начала торможения второго участка ДЗТ, о.е.",null,"-","-",{"$f":"IF(CELL(\"содержимое\",'Исходные данные'!L12)=\"Маслонаполненный\",2,IF(CELL(\"содержимое\",'Исходные данные'!L12)=\"Сухой\",1.6,\"Ошибка: неверно задан вид трансформатора\"))","v":2},"В соответствии с п. 10.3.2",{"$f":"F18","v":2}]
["2.8           ","Ток небаланса, соответствующий току начала торможения первого участка, о.е.",null,"10.5",null,{"$f":"(J19*J20+'Исходные данные'!J21*MAX('Исходные данные'!J22:J23)+J21)/100*H17","v":0.31019999999999998},"-","-",null,1]
[null,null,null,null,null,null,null,null,null,10]
[null,null,null,null,null,null,null,null,null,5]
["2.9           ","Уставка начального тока срабатывания ДЗТ, о.е.",null,"10.4",null,{"$f":"ROUNDUP(J22*F19,2)","v":0.41000000000000003},"-",{"$f":"F22","v":0.41000000000000003},null,1.3]
["2.10         ","Ток небаланса, соответствующий току начала торможения второго участка, о.е.",null,"10.8",null,{"$f":"(J23*J24+'Исходные данные'!J21*MAX('Исходные данные'!J22:J23)+J25)/100*H18","v":0.72039999999999993},"-","-",null,1.5]
[null,null,null,null,null,null,null,null,null,10]
[null,null,null,null,null,null,null,null,null,5]
["2.11         ","Ток срабатывания ДЗТ при токе торможения, равном току начала торможения второго участка, о.е.",null,"10.7",null,{"$f":"J26*F23","v":0.93651999999999991},"-","-",null,1.3]
["2.12         ","Уставка коэффициента торможения первого участка ДЗТ",null,"10.6",null,{"$f":"ROUNDUP((F26-H22)/(H18-H17),2)","v":0.53},"-",{"$f":"F27","v":0.53}]
["2.13         ","Ток торможения, соответствующий максимальному току внешнего КЗ, о.е.",null,"10.10",null,{"$f":"'Исходные данные'!J53/F10-F11/2","v":8.4222540360911449},"-","-"]
["2.14         ","Уставка коэффициента торможения второго участка ДЗТ",null,"10.9",null,{"$f":"ROUNDUP((F14-F26)/(F28-H18),2)","v":0.88},"-",{"$f":"F29","v":0.88}]
["2.15         ","Уставка тока срабатывания ДЗТ грубого органа, о.е.",null,"10.11",null,{"$f":"ROUNDUP(J30*'Исходные данные'!J39,2)","v":1.54},"-",{"$f":"F30","v":1.54},null,1.1000000000000001]
["2.16         ","Уставка задержки срабатывания ДЗТ, с",null,"-","-","-","В соответствии с п. 10.3.7",0]
["2.17         ","Уставка блокирования ДЗТ по второй гармонике, о.е.",null,"-","-","-","В соответствии с п. 10.3.8",0.15]
["2.18         ","Уставка максимальной длительности перекрестного блокирования, с",null,"-","-","-","В соответствии с п. 10.3.9",2]
["2.19         ","Относительное значение минимального тока КЗ на выводах трансформатора, о.е.",null,"10.15",null,{"$f":"3^0.5/2*'Исходные данные'!J54/F10","v":6.4071428571428557},"-","-"]
["2.20         ","Уставка срабатывания ДЗТ при минимальном токе КЗ на выводах трансформатора, о.е.",null,"10.14",null,{"$f":"IF(F34<=2*H17,H22,IF(AND(2*H17<F34,F34<=2*H18),(F34/2-H17)*H27+H22,(F34/2-H18)*H29+F26))","v":1.9956628571428565},"-","-"]
["2.21         ","Коэффициент чувствительности ДЗТ",null,"10.16",null,{"$f":"F34/F35","v":3.2105337002242007},{"$f":"IF(F36<2,\"Низкая чувствительность\",\"Чувствительность в норме\")","v":"Чувствительность в норме"},"-"]
["2.22         ","Коэффициент чувствительности грубого органа ДЗТ",null,"10.17",null,{"$f":"F34/H30","v":4.1604823747680877},{"$f":"IF(F37<2,\"Низкая чувствительность\",\"Чувствительность в норме\")","v":"Чувствительность в норме"},"-"]
["2.24         ","Уставка тока срабатывания сигнализации небаланса, о.е.",null,"10.18",null,{"$f":"ROUNDUP(J38*F19,2)","v":0.33},"-",{"$f":"F38","v":0.33},null,1.05]
["2.25         ","Уставка задержки срабатывания сигнализации небаланса, с",null,"-","-","-","В соответствии с п. 10.4.3",10]
["3.     Токовая отсечка стороны ВН (ТО ВН)"]
["3.1           ","Уставка тока срабатывания ТО ВН по условию отстройки от тока КЗ на стороне НН, А",null,"11.1",null,{"$f":"J41*'Исходные данные'!J53","v":449.8},"-","-",null,1.3]
["3.2           ","Уставка тока срабатывания ТО ВН по условию отстройки от БТН, А",null,"11.2",null,{"$f":"J42*F10","v":189.7725232640683},"-","-",null,6]
["3.3           ","Выбранное значение уставки тока срабатывания ТО ВН, А",null,"-","-",{"$f":"MAX(F41:F42)","v":449.8},"максимальное значение из п.п. 3.1 и 3.2",{"$f":"ROUNDUP(F43/'Исходные данные'!O29,2)","v":22.49}]
["3.4           ","Коэффициент чувствительности ТО ВН",null,"11.3",null,{"$f":"3^0.5/2*'Исходные данные'!J50/'Расчет уставок'!F43","v":4.0913827991150109},"Проверку чувствительности следует выполнять только в случае неиспользования ДЗТ",{"$f":"IF('Исходные данные'!J14<6300,'Расчет уставок'!F44,\"-\")","v":"-"},{"$f":"IF('Исходные данные'!J14<6300,\"ТО - основная\",\"ТО - резервная\")","v":"ТО - резервная"}]
["3.5           ","Уставка задержки срабатывания ТО ВН, с",null,"-","-","-","В соответствии с п. 11.2.1",0]
["4.     Максимальная токовая защита стороны НН (МТЗ НН)"]
["4.1           ","Уставка тока срабатывания МТЗ НН по условию отстройки от режима самозапуска, А",null,"12.1",null,{"$f":"J47*J48*J50/J49*F10","v":279.66477112599534},"-","-",null,1.2]
[null,null,null,null,null,null,null,null,null,{"$f":"IF(CELL(\"содержимое\",'Исходные данные'!A47:E47)='Исходные данные'!F48,2,IF(CELL(\"содержимое\",'Исходные данные'!A47:E47)='Исходные данные'!F49,2.5,IF(CELL(\"содержимое\",'Исходные данные'!A47:E47)='Исходные данные'!F47,5,\"Выберите тип сети в исходных данных\")))","v":5}]
[null,null,null,null,null,null,null,null,null,0.95]
[null,null,null,null,null,null,null,null,null,{"$f":"'Исходные данные'!J39","v":1.4}]
["4.2           ","Уставка тока срабатывания МТЗ НН по условию согласования с МТЗ предыдущего элемента, А",null,"12.2",null,{"$f":"J51*('Исходные данные'!J64+'Исходные данные'!J41*'Расчет уставок'!F10)","v":55.154140485555438},"Согласование с уставкой МТЗ на СВ НН","-",null,1.1000000000000001]
["4.3           ","Коэффициент чувствительности МТЗ НН к КЗ на шинах НН",null,"12.3",null,{"$f":"3^0.5/2*'Исходные данные'!J54/MAX(F47,F51)","v":0.72461734693877555},{"$f":"IF(F52<1.5,\"кч не удовлетворяет требованиям ПУЭ. Следует использовать пуск по напряжению\",\"кч удовлетворяет требованиям ПУЭ\")","v":"кч не удовлетворяет требованиям ПУЭ. Следует использовать пуск по напряжению"},"-",{"$f":"IF(OR(F52<1.5,F53<1.2),0,1)","v":0}]
["4.4           ","Коэффициент чувствительности МТЗ НН к КЗ в конце зоны резервирования",null,"12.3",null,{"$f":"3^0.5/2*'Исходные данные'!J57/MAX(F47,F51)","v":0.39946853741496602},{"$f":"IF(F53<1.2,\"кч не удовлетворяет требованиям ПУЭ. Следует использовать пуск по напряжению\",\"кч удовлетворяет требованиям ПУЭ\")","v":"кч не удовлетворяет требованиям ПУЭ. Следует использовать пуск по напряжению"},"-"]
["4.5           ","Пересчет уставки тока срабатывания МТЗ НН по условию отстройки от режима длительно допустимой перегрузки (без учета самозапуска), А",null,"12.1",null,{"$f":"J47*J50/J49*F10","v":55.932954225199076},"Значение уставки, пересчитанное без учета режима самозапуска","-"]
["4.6           ","Коэффициент чувствительности МТЗ НН к КЗ на шинах НН",null,"12.3",null,{"$f":"3^0.5/2*'Исходные данные'!J54/MAX(F51,F54)","v":3.6230867346938771},{"$f":"IF(F55<1.5,\"кч не удовлетворяет требованиям ПУЭ\",\"кч удовлетворяет требованиям ПУЭ\")","v":"кч удовлетворяет требованиям ПУЭ"},"-"]
["4.7           ","Коэффициент чувствительности МТЗ НН к КЗ в конце зоны резервирования",null,"12.3",null,{"$f":"3^0.5/2*'Исходные данные'!J57/MAX(F54,F51)","v":1.9973426870748296},{"$f":"IF(F56<1.2,\"кч не удовлетворяет требованиям ПУЭ\",\"кч удовлетворяет требованиям ПУЭ\")","v":"кч удовлетворяет требованиям ПУЭ"},"-"]
["4.8           ","Выбранное значение уставки МТЗ НН, А",null,"-","-",{"$f":"IF(OR(F52<1.5,F53<1.2),MAX(F51,F54),MAX(F47,F51))","v":55.932954225199076},"максимальное значение из п.п. 4.5 и 4.2 (если не учитывать самозапуск двигателей) или максимальное значение из п.п. 4.1 и 4.2 (если учитывать самозапуск двигателей)",{"$f":"ROUNDUP(F57*'Исходные данные'!J19/'Исходные данные'!O31,2)","v":4.88}]
["4.9           ","Уставка линейного напряжения срабатывания ПОН, В",null,"12.5",null,{"$f":"1/J58*J59*'Исходные данные'!J43","v":6125},"-",{"$f":"F58/'Исходные данные'!O33","v":61.25},null,1.2]
[null,null,null,null,null,null,null,null,null,0.7]
["4.10           ","Уставка напряжения обратной последовательности срабатывания ПОН, В",null,"-","-","-","В соответствии с п. 12.2.5.5",6]
["4.11           ","Коэффициент чувствительности уставки линейного напряжения ПОН к КЗ в конце зоны резервирования",null,"12.6",null,{"$f":"F58/'Исходные данные'!J58","v":1.208086785009862},{"$f":"IF(F61<1.2,\"кч не удовлетворяет требованиям ПУЭ\",\"кч удовлетворяет требованиям ПУЭ\")","v":"кч удовлетворяет требованиям ПУЭ"},"-"]
["4.12           ","Коэффициент чувствительности уставки напряжения обратной последовательности ПОН к КЗ в конце зоны резервирования",null,"12.7",null,{"$f":"'Исходные данные'!J59/('Расчет уставок'!H60*'Исходные данные'!O33)","v":2.85},{"$f":"IF(F62<1.2,\"кч не удовлетворяет требованиям ПУЭ\",\"кч удовлетворяет требованиям ПУЭ\")","v":"кч удовлетворяет требованиям ПУЭ"},"-"]
["4.13           ","Уставка задержки срабатывания МТЗ НН на отключение СВ НН, с",null,"-","-","-","В соответствии с уставкой МТЗ, установленной на СВ",{"$f":"'Исходные данные'!J65","v":1.1000000000000001}]
["4.14         ","Уставка задержки срабатывания МТЗ НН на отключение ВВ НН, с",null,"-",null,{"$f":"H63+J64","v":1.4000000000000001},"Значение ступени селективности принято равным 0,3 с",{"$f":"F64","v":1.4000000000000001},null,0.3]
["4.15         ","Уставка задержки отключения трансформатора от МТЗ НН, с",null,"-",null,{"$f":"J64","v":0.3},"Значение ступени селективности принято равным 0,3 с",{"$f":"F65","v":0.3}]
["4.16         ","Уставка тока срабатывания МТЗ НН при отключенном СВ НН по условию отстройки от режима длительно допустимой перегрузки, А",null,"12.1",null,{"$f":"J66*J68/J67*F10","v":27.966477112599538},"Максимальная нагрузка в режиме с отключенным СВ НН принята равной 70% от номинальной","-",null,1.2]
[null,null,null,null,null,null,null,null,null,0.95]
[null,null,null,null,null,null,null,null,null,{"$f":"'Исходные данные'!J41","v":0.7}]
["4.17         ","Уставка тока срабатывания МТЗ НН при отключенном СВ НН по условию согласования с МТЗ предыдущего элемента, А",null,"12.2",null,{"$f":"J69*('Исходные данные'!J67+'Исходные данные'!J41*'Расчет уставок'!F10)","v":27.24714048555543},"-","-",null,1.1000000000000001]
["4.18         ","Выбранное значение уставки МТЗ НН при отключенном СВ НН, А",null,"-","-",{"$f":"MAX(F66,F69)","v":27.966477112599538},"максимальное значение из п.п. 4.12 и 4.13",{"$f":"ROUNDUP(F70*'Исходные данные'!J19/'Исходные данные'!O31,2)","v":2.44}]
["4.19         ","Коэффициент чувствительности МТЗ НН при отключенном СВ НН к КЗ на шинах НН",null,"12.3",null,{"$f":"3^0.5/2*'Исходные данные'!J54/'Расчет уставок'!F70","v":7.2461734693877542},{"$f":"IF(F71<1.5,\"кч не удовлетворяет требованиям ПУЭ. Следует использовать пуск по напряжению\",\"кч удовлетворяет требованиям ПУЭ\")","v":"кч удовлетворяет требованиям ПУЭ"},"-"]
["4.20         ","Коэффициент чувствительности МТЗ НН при отключенном СВ НН к КЗ в конце зоны резервирования",null,"12.3",null,{"$f":"3^0.5/2*'Исходные данные'!J57/'Расчет уставок'!F70","v":3.9946853741496593},{"$f":"IF(F72<1.2,\"кч не удовлетворяет требованиям ПУЭ. Следует использовать пуск по напряжению\",\"кч удовлетворяет требованиям ПУЭ\")","v":"кч удовлетворяет требованиям ПУЭ"},"-"]
["4.21         ","Уставка задержки срабатывания МТЗ НН при отключенном СВ НН на отключение ВВ НН, с",null,"-","-","-","В соответствии с уставкой МТЗ, установленной на СВ",{"$f":"'Исходные данные'!J65","v":1.1000000000000001}]
["5.     Максимальная токовая защита стороны ВН (МТЗ ВН)"]
["5.1           ","Уставка тока срабатывания МТЗ ВН по условию отстройки от режима самозапуска, А",null,"13.1",null,{"$f":"J75*J76*J78/J77*F10","v":279.66477112599534},"-","-",null,1.2]
[null,null,null,null,null,null,null,null,null,{"$f":"J48","v":5}]
[null,null,null,null,null,null,null,null,null,0.95]
[null,null,null,null,null,null,null,null,null,{"$f":"'Исходные данные'!J39","v":1.4}]
["5.2           ","Уставка тока срабатывания МТЗ НН по условию согласования с МТЗ предыдущего элемента, А",null,"13.2",null,{"$f":"J79*F57","v":61.526249647718991},"Согласование с уставкой МТЗ НН","-",null,1.1000000000000001]
["5.3           ","Коэффициент чувствительности МТЗ ВН к КЗ на шинах НН",null,"13.3",null,{"$f":"J80*'Исходные данные'!J54/MAX('Расчет уставок'!F75,'Расчет уставок'!F79)","v":0.83671604062914906},{"$f":"IF(F80<'Исходные данные'!G51,\"кч не удовлетворяет требованиям ПУЭ. Следует использовать пуск по напряжению\",\"кч удовлетворяет требованиям ПУЭ\")","v":"кч не удовлетворяет требованиям ПУЭ. Следует использовать пуск по напряжению"},"-",null,{"$f":"'Исходные данные'!N9","v":1}]
["5.4           ","Пересчет уставки тока срабатывания МТЗ ВН по условию отстройки от режима длительно допустимой перегрузки (без учета самозапуска), А",null,"13.1",null,{"$f":"J75*J78/J77*F10","v":55.932954225199076},"Значение уставки, пересчитанное без учета режима самозапуска","-"]
["5.5           ","Коэффициент чувствительности МТЗ ВН к КЗ на шинах НН",null,"13.3",null,{"$f":"J80*'Исходные данные'!J54/MAX(F81,F79)","v":3.8032547301324948},{"$f":"IF(F82<1.2,\"кч не удовлетворяет требованиям ПУЭ\",\"кч удовлетворяет требованиям ПУЭ\")","v":"кч удовлетворяет требованиям ПУЭ"},"-"]
["5.6           ","Выбранное значение уставки МТЗ ВН, А",null,"-","-",{"$f":"IF(F80<'Исходные данные'!G51,MAX(F81,F79),MAX(F75,F79))","v":61.526249647718991},"максимальное значение из п.п. 5.4 и 4.2 (если не учитывать самозапуск двигателей) или максимальное значение из п.п. 5.1 и 5.2 (если учитывать самозапуск двигателей)",{"$f":"ROUNDUP(F83/'Исходные данные'!O29,2)","v":3.0799999999999996}]
["5.7           ","Уставка задержки срабатывания МТЗ ВН, с",null,"-",null,{"$f":"H64+J84","v":1.7000000000000002},"Значение ступени селективности принято равным 0,3 с",{"$f":"F84","v":1.7000000000000002},null,0.3]
["5.8           ","Уставка тока срабатывания МТЗ ВН при отключенном СВ НН по условию отстройки от режима длительно допустимой перегрузки, А",null,"13.1",null,{"$f":"J85*J87/J86*F10","v":27.966477112599538},"Максимальная нагрузка в режиме с отключенным СВ НН принята равной 70% от номинальной","-",null,1.2]
[null,null,null,null,null,null,null,null,null,0.95]
[null,null,null,null,null,null,null,null,null,{"$f":"'Исходные данные'!J41","v":0.7}]
["5.9           ","Уставка тока срабатывания МТЗ ВН при отключенном СВ НН по условию согласования с МТЗ предыдущего элемента, А",null,"13.2",null,{"$f":"J88*F70","v":30.763124823859496},"-","-",null,1.1000000000000001]
["5.10         ","Выбранное значение уставки МТЗ ВН при отключенном СВ НН, А",null,"-","-",{"$f":"MAX(F88,F85)","v":30.763124823859496},"максимальное значение из п.п. 5.8 и 5.9",{"$f":"ROUNDUP(F89/'Исходные данные'!O29,2)","v":1.54}]
["5.11         ","Коэффициент чувствительности МТЗ ВН при отключенном СВ НН к КЗ на шинах НН",null,"13.3",null,{"$f":"J80*'Исходные данные'!J54/'Расчет уставок'!F89","v":7.6065094602649896},{"$f":"IF(F90<1.2,\"кч не удовлетворяет требованиям ПУЭ\",\"кч удовлетворяет требованиям ПУЭ\")","v":"кч удовлетворяет требованиям ПУЭ"},"-"]
["5.12         ","Уставка задержки срабатывания МТЗ ВН при отключенном СВ НН, с",null,"-",null,{"$f":"H73+J84","v":1.4000000000000001},"Значение ступени селективности принято равным 0,3 с",{"$f":"F91","v":1.4000000000000001}]
["6.     Защита от перегрузки (ЗП)"]
["6.1           ","Уставка тока срабатывания защиты от перегрузки, А",null,"14.1",null,{"$f":"J93/J94*F10","v":34.958096390749425},"-",{"$f":"ROUNDUP(F93/'Исходные данные'!O29,2)","v":1.75},null,1.05]
[null,null,null,null,null,null,null,null,null,0.95]
["6.2           ","Уставка задержки срабатывания ЗП, с",null,"-","-","-","В соответствии с п. 14.2.2",10]
["7.     Логическая защита шин (ЛЗШ)"]
["7.1           ","Уставка задержки срабатывания ЛЗШ, с",null,"-","-",0.1,"В соответствии с п. 15.2.2",{"$f":"F97","v":0.1}]
["8.     Логическая защита трансформатора (ЛЗТ)"]
["8.1           ","Уставка задержки срабатывания ЛЗТ, с",null,"-","-",0.5,"В соответствии с п. 15.3.3",{"$f":"F99","v":0.5}]
["9.     Защита от дуговых замыканий (ЗДЗ)"]
["9.1           ","Уставка пускового органа ЗДЗ по току, А",null,"16.1",null,{"$f":"J101*J103/J102*F10","v":55.932954225199076},"-",{"$f":"ROUNDUP(F101/'Исходные данные'!O29,2)","v":2.8},null,1.2]
[null,null,null,null,null,null,null,null,null,0.95]
[null,null,null,null,null,null,null,null,null,{"$f":"'Исходные данные'!J39","v":1.4}]
["10.     Токовая защита обратной последовательности стороны НН (ТЗОП НН)"]
["10.1           ","Уставка тока срабатывания ТЗОП НН по условию отстройки от тока небаланса в нормальном режиме, А",null,"17.1",null,{"$f":"J105*J107/J106*F10","v":4.6610795187665897},"-","-",null,{"$f":"IF('Исходные данные'!A54='Исходные данные'!H54,0.1,'Исходные данные'!G54)","v":0.1}]
[null,null,null,null,null,null,null,null,null,0.95]
[null,null,null,null,null,null,null,null,null,{"$f":"'Исходные данные'!J39","v":1.4}]
["10.2           ","Уставка тока срабатывания ТЗОП НН по условию согласования с МТЗ предыдущего элемента, А",null,"17.2",null,{"$f":"J108*'Исходные данные'!J64/3^0.5","v":17.782388291040476},"Согласование с уставкой МТЗ на СВ НН","-",null,1.1000000000000001]
["10.3           ","Выбранное значение уставки тока срабатывания ТЗОП НН, А",null,"-","-",{"$f":"MAX(F108,F105)","v":17.782388291040476},"максимальное значение из п.п. 7.1 и 7.2",{"$f":"ROUNDUP(F109*'Исходные данные'!J19/'Исходные данные'!O31,2)","v":1.55}]
["10.4           ","Коэффициент чувствительности ТЗОП НН к КЗ на шинах НН",null,"17.3",null,{"$f":"'Исходные данные'!J54/(2*F109)","v":6.5795436521285264},{"$f":"IF(F110<1.5,\"кч не удовлетворяет требованиям ПУЭ\",\"кч удовлетворяет требованиям ПУЭ\")","v":"кч удовлетворяет требованиям ПУЭ"},"-"]
["10.5           ","Коэффициент чувствительности ТЗОП НН к КЗ в конце зоны резервирования",null,"17.3",null,{"$f":"'Исходные данные'!J57/(2*F109)","v":3.6271843210452133},{"$f":"IF(F111<1.2,\"кч не удовлетворяет требованиям ПУЭ\",\"кч удовлетворяет требованиям ПУЭ\")","v":"кч удовлетворяет требованиям ПУЭ"},"-"]
["10.6           ","Уставка задержки срабатывания ТЗОП НН на отключение ВВ НН, с",null,"-",null,{"$f":"F64","v":1.4000000000000001},"В соответствии с п. 15.2.1.5",{"$f":"F112","v":1.4000000000000001}]
["10.7           ","Уставка задержки отключения трансформатора от ТЗОП НН, с",null,"-",null,{"$f":"F65","v":0.3},"В соответствии с п. 17.2.1.6",{"$f":"F113","v":0.3}]
["11.     Токовая защита обратной последовательности стороны ВН (ТЗОП ВН)"]
["11.1           ","Уставка тока срабатывания ТЗОП ВН по условию согласования с ТЗОП НН, А",null,"17.4",null,{"$f":"J115*F109","v":19.560627120144524},"-",{"$f":"F115/'Исходные данные'!O29","v":0.97803135600722624},null,1.1000000000000001]
["11.2           ","Коэффициент чувствительности ТЗОП ВН к КЗ на шинах НН",null,"17.5",null,{"$f":"'Исходные данные'!J54/(2*'Расчет уставок'!F115)","v":5.9814033201168417},{"$f":"IF(F116<'Исходные данные'!G57,\"кч не удовлетворяет требованиям ПУЭ\",\"кч удовлетворяет требованиям ПУЭ\")","v":"кч удовлетворяет требованиям ПУЭ"},"-"]
["11.3           ","Уставка задержки срабатывания ТЗОП ВН, с",null,"-",null,{"$f":"F84","v":1.7000000000000002},"В соответствии с п. 17.3.1.3",{"$f":"F117","v":1.7000000000000002}]
["12.     Газовая защита (ГЗ)"]
["12.1           ","Уставка задержки срабатывания первой ступени ГЗ, с",null,"-","-",0,"В соответствии с п. 19.2.1",{"$f":"F119","v":0}]
["12.2           ","Уставка задержки срабатывания второй ступени ГЗ, с",null,"-","-",0,"В соответствии с п. 19.2.1",{"$f":"F120","v":0}]
["12.3           ","Уставка задержки срабатывания ГЗ РПН, с",null,"-","-",0,"В соответствии с п. 19.2.1",{"$f":"F121","v":0}]
["12.4           ","Уставка задержки срабатывания контроля изоляции цепей ГЗ, с",null,"-","-",0,"В соответствии с п. 19.2.2",{"$f":"F122","v":0}]
["12.5           ","Уставка задержки срабатывания сигнализации отсутствия питания цепей ГЗ, с",null,"-","-",10,"Отстроена с запасом от времени действия защит и АВР цепей питания",{"$f":"F123","v":10}]
["13.     УРОВ"]
["13.1           ","Уставка токового органа УРОВ, А",null,"-","-",{"$f":"IF(H6=1,0.1,0.5)","v":0.5},"В соответствии с п. 22.2.1",{"$f":"F125","v":0.5}]
["13.2           ","Уставка задержки срабатывания УРОВ, с",null,"22.1",null,{"$f":"IF(J126+J127+J128<0.2,0.2,J126+J127+J128)","v":0.2},"В соответствии с п. 22.2.1",{"$f":"ROUNDUP(MAX(0.2,F126),2)","v":0.2},null,4.4999999999999998E-2]
[null,null,null,null,null,null,null,null,null,0.02]
[null,null,null,null,null,null,null,null,null,0.1]

{"sheet":"Результаты расчета","index":2,"n_rows":61,"n_cols":15,"rows_kept":61,"cut":false,"hidden":false,"merged":[[33,0,33,2],[28,0,28,2],[16,0,16,2],[19,0,19,2],[3,0,3,2],[46,0,46,2],[49,0,49,2],[55,0,55,2],[42,0,42,2],[36,0,36,2],[38,0,38,2],[40,0,40,2]]}
["Уставка","Обозначение","Значение для ввода в устройство"]
["Номинальный ток диапазона измерений токов стороны ВН, А",null,{"$f":"'Расчет уставок'!$H$4","v":5}]
["Номинальный ток диапазона измерений токов стороны НН, А",null,{"$f":"'Расчет уставок'!$H$6","v":5}]
["ДТО и ДЗТ"]
["Ток срабатывания ДТО, о.е.",null,{"$f":"'Расчет уставок'!H16","v":6.55}]
["Ток начала торможения первого участка ДЗТ, о.е.",null,{"$f":"'Расчет уставок'!H17","v":1}]
["Ток начала торможения второго участка ДЗТ, о.е.",null,{"$f":"'Расчет уставок'!H18","v":2}]
["Начальный ток срабатывания ДЗТ, о.е.",null,{"$f":"'Расчет уставок'!H22","v":0.41000000000000003}]
["Коэффициент торможения первого участка ДЗТ",null,{"$f":"'Расчет уставок'!H27","v":0.53},null,null,null,null,"ДЗТ",null,"ДЗТ",null,"Небаланс",null,"Безусловное"]
["Коэффициент торможения второго участка ДЗТ",null,{"$f":"'Расчет уставок'!H29","v":0.88},null,null,null,null,0,{"$f":"C8","v":0.41000000000000003},0,{"$f":"C5","v":6.55},{"$f":"J10","v":0},{"$f":"C15","v":0.33},{"$f":"O10/1.5","v":0.27333333333333337},{"$f":"I10","v":0.41000000000000003}]
["Ток срабатывания ДЗТ грубого органа, о.е.",null,{"$f":"'Расчет уставок'!H30","v":1.54},null,null,null,null,{"$f":"C6","v":1},{"$f":"C8","v":0.41000000000000003},{"$f":"ROUNDUP(H13,0)","v":9},{"$f":"C5","v":6.55},{"$f":"J11","v":9},{"$f":"C15","v":0.33},{"$f":"O11/1.5","v":4.3666666666666663},{"$f":"K11","v":6.55}]
["Задержка срабатывания ДЗТ, с",null,{"$f":"'Расчет уставок'!H31","v":0},null,null,null,null,{"$f":"C7","v":2},{"$f":"(C8+(C7-C6)*C9)","v":0.94000000000000006}]
["Уставка блокирования ДЗТ по второй гармонике, о.е.",null,{"$f":"'Расчет уставок'!H32","v":0.15},null,null,null,null,{"$f":"'Расчет уставок'!F28","v":8.4222540360911449},{"$f":"(I12+(H13-H12)*C10)","v":6.5915835517602082}]
["Максимальная длительность перекрестного блокирования, с",null,{"$f":"'Расчет уставок'!H33","v":2}]
["Ток срабатывания сигнализации небаланса, о.е.",null,{"$f":"'Расчет уставок'!H38","v":0.33}]
["Задержка срабатывания сигнализации небаланса, с",null,{"$f":"'Расчет уставок'!H39","v":10}]
["ТО ВН"]
["Ток срабатывания ТО ВН, А",null,{"$f":"'Расчет уставок'!H43","v":22.49}]
["Задержка срабатывания ТО ВН, с",null,{"$f":"'Расчет уставок'!H45","v":0}]
["МТЗ НН"]
["Ток срабатывания МТЗ НН, А",null,{"$f":"'Расчет уставок'!H57","v":4.88}]
["Линейное напряжение срабатывания ПОН, В",null,{"$f":"'Расчет уставок'!H58","v":61.25}]
["Напряжение обратной последовательности срабатывания ПОН, В",null,{"$f":"'Расчет уставок'!H60","v":6}]
["Задержка срабатывания МТЗ НН на отключение СВ НН, с",null,{"$f":"'Расчет уставок'!H63","v":1.1000000000000001}]
["Задержка срабатывания МТЗ НН на отключение ВВ НН, с",null,{"$f":"'Расчет уставок'!H64","v":1.4000000000000001}]
["Задержка отключения трансформатора от МТЗ НН, с",null,{"$f":"'Расчет уставок'!H65","v":0.3}]
["Ток срабатывания МТЗ НН при отключенном СВ НН, А",null,{"$f":"'Расчет уставок'!H70","v":2.44}]
["Задержка срабатывания МТЗ НН при отключенном СВ НН на отключение ВВ НН, с",null,{"$f":"'Расчет уставок'!H73","v":1.1000000000000001}]
["МТЗ ВН"]
["Ток срабатывания МТЗ ВН, А",null,{"$f":"'Расчет уставок'!H83","v":3.0799999999999996}]
["Задержка срабатывания МТЗ ВН, с",null,{"$f":"'Расчет уставок'!H84","v":1.7000000000000002}]
["Ток срабатывания МТЗ ВН при отключенном СВ НН, А",null,{"$f":"'Расчет уставок'!H89","v":1.54}]
["Задержка срабатывания МТЗ ВН при отключенном СВ НН, с",null,{"$f":"'Расчет уставок'!H91","v":1.4000000000000001}]
["ЗП"]
["Ток срабатывания защиты от перегрузки, А",null,{"$f":"'Расчет уставок'!H93","v":1.75}]
["Задержка срабатывания ЗП, с",null,{"$f":"'Расчет уставок'!H95","v":10}]
["ЛЗШ"]
["Задержка срабатывания ЛЗШ, с",null,{"$f":"'Расчет уставок'!H97","v":0.1}]
["ЛЗТ"]
["Задержка срабатывания ЛЗТ, с",null,{"$f":"'Расчет уставок'!H99","v":0.5}]
["ЗДЗ"]
["Уставка пускового органа ЗДЗ по току, А",null,{"$f":"'Расчет уставок'!H101","v":2.8}]
["ТЗОП НН"]
["Ток срабатывания ТЗОП НН, А",null,{"$f":"'Расчет уставок'!H109","v":1.55}]
["Задержка срабатывания ТЗОП НН на отключение ВВ НН, с",null,{"$f":"'Расчет уставок'!H112","v":1.4000000000000001}]
["Задержка отключения трансформатора от ТЗОП НН, с",null,{"$f":"'Расчет уставок'!H113","v":0.3}]
["ТЗОП ВН"]
["Ток срабатывания ТЗОП ВН, с",null,{"$f":"'Расчет уставок'!H115","v":0.97803135600722624}]
["Задержка срабатывания ТЗОП ВН, с",null,{"$f":"'Расчет уставок'!H117","v":1.7000000000000002}]
["ГЗ"]
["Задержка срабатывания первой ступени ГЗ, с",null,{"$f":"'Расчет уставок'!H119","v":0}]
["Задержка срабатывания второй ступени ГЗ, с",null,{"$f":"'Расчет уставок'!H120","v":0}]
["Задержка срабатывания ГЗ РПН, с",null,{"$f":"'Расчет уставок'!H121","v":0}]
["Задержка срабатывания контроля изоляции цепей ГЗ, с",null,{"$f":"'Расчет уставок'!H122","v":0}]
["Задержка срабатывания сигнализации отсутствия питания цепей ГЗ, с",null,{"$f":"'Расчет уставок'!H123","v":10}]
["УРОВ"]
["Уставка токового органа УРОВ, А",null,{"$f":"'Расчет уставок'!H125","v":0.5}]
["Задержка срабатывания УРОВ, с",null,{"$f":"'Расчет уставок'!H126","v":0.2}]
[]
[]
["еееее"]